fUST/lending_fUST_20250715
["ID","MTS","AMOUNT","RATE_DAILY","PERIOD"]
[372330653,1752592243911,-460.85133271,0.00023987,2]
[372330655,1752592243920,-460.0,0.00023987,2]
[372330657,1752592243931,-460.0,0.00023987,2]
[372330659,1752592243940,-460.0,0.00023987,2]
[372330661,1752592243950,-460.37681621,0.00023987,2]
[372330663,1752592243960,-460.0,0.00023987,2]
[372330665,1752592243970,-460.0,0.00023987,2]
[372330666,1752592243979,-460.0,0.00023987,2]
[372330667,1752592243990,-434.07835565,0.00023987,2]
[372330668,1752592244000,-460.0,0.00023987,2]
[372330669,1752592244010,-460.0,0.00023987,2]
[372330670,1752592244020,-460.0,0.00023987,2]
[372330671,1752592244030,-460.0,0.00023987,2]
[372330672,1752592244041,-460.0,0.00023987,2]
[372330673,1752592244051,-460.75549119,0.00023987,2]
[372330674,1752592244061,-460.0,0.00023987,2]
[372330675,1752592244071,-460.49723558,0.00023987,2]
[372330676,1752592244081,-460.0,0.00023987,2]
[372330677,1752592244090,-460.0,0.00023987,2]
[372330678,1752592244100,-460.0,0.00023987,2]
[372330679,1752592244110,-460.0,0.00023987,2]
[372330680,1752592244120,-460.0,0.00023987,2]
[372330681,1752592244130,-460.0,0.00023987,2]
[372330682,1752592244140,-460.47602776,0.00023987,2]
[372330683,1752592244149,-460.0,0.00023987,2]
[372330684,1752592244159,-460.0,0.00023987,2]
[372330685,1752592244169,-460.0,0.00023987,2]
[372330686,1752592244179,-541.86479735,0.00023987,2]
[372330687,1752592244189,-647.0,0.00023989,2]
[372330688,1752592244199,-2155.0,0.00023989,2]
[372330689,1752592244209,-968.0,0.00023989,2]
[372330690,1752592244219,-407.0,0.00023989,2]
[372330692,1752592244229,-8328.6901937,0.0002399,2]
[372330693,1752592244238,-525.51022752,0.00024,10]
[372330695,1752592244248,-72968.00937785,0.00024,15]
[372330696,1752592244258,-460.0,0.00024058,2]
[372330698,1752592244267,-157.43,0.00024058,2]
[372330700,1752592244278,-460.0,0.00024058,2]
[372330702,1752592244288,-767.6,0.00024058,2]
[372330704,1752592244298,-460.0,0.00024058,2]
[372330706,1752592244308,-460.0,0.00024058,2]
[372330708,1752592244318,-460.0,0.00024095,2]
[372330710,1752592244328,-2000.0,0.00024116,2]
[372330712,1752592244337,-162.0,0.00024164,7]
[372330714,1752592244347,-505.97111907,0.00024191,2]
[372330716,1752592244356,-460.0,0.00024191,2]
[372330718,1752592244366,-460.0,0.00024191,2]
[372330720,1752592244376,-460.0,0.00024191,2]
[372330722,1752592244386,-465.18212705,0.00024191,2]
[372330724,1752592244400,-462.38177074,0.00024191,2]
[372330726,1752592244410,-460.0,0.00024191,2]
[372330728,1752592244420,-460.0,0.00024191,2]
[372330730,1752592244430,-460.0,0.00024191,2]
[372330733,1752592244442,-460.0,0.00024191,2]
[372330735,1752592244455,-460.0,0.00024191,2]
[372330736,1752592244465,-460.0,0.00024191,2]
[372330739,1752592244476,-460.0,0.00024191,2]
[372330741,1752592244486,-339.68063792,0.00024191,2]
[372330742,1752592244496,-460.0,0.00024191,2]
[372330744,1752592244505,-392.35597529,0.00024191,2]
[372330746,1752592244515,-461.32,0.00024191,2]
[372330748,1752592244525,-460.0,0.00024191,2]
[372330751,1752592244536,-460.0,0.00024191,2]
[372330753,1752592244548,-460.0,0.00024191,2]
[372330754,1752592244558,-460.0,0.00024191,2]
[372330756,1752592244568,-1011.29,0.00024191,2]
[372330759,1752592244578,-13393.11,0.000242,7]
[372330760,1752592244587,-525.51022752,0.000242,7]
[372330762,1752592244598,-460.0,0.00024261,2]
[372330765,1752592244608,-360.0,0.00024283,2]
[372330766,1752592244618,-460.0,0.00024332,2]
[372330768,1752592244628,-460.0,0.00024332,2]
[372330770,1752592244638,-767.6,0.00024332,2]
[372330773,1752592244648,-453.0,0.00024332,2]
[372330775,1752592244658,-460.0,0.00024332,2]
[372330776,1752592244668,-382.76,0.00024369,2]
[372330778,1752592244679,-460.0,0.00024465,2]
[372330780,1752592244688,-460.0,0.00024465,2]
[372330782,1752592244697,-460.0,0.00024465,2]
[372330784,1752592244707,-460.0,0.00024465,2]
[372330786,1752592244717,-461.32,0.00024465,2]
[372330788,1752592244727,-460.0,0.00024465,2]
[372330790,1752592244736,-460.0,0.00024465,2]
[372330792,1752592244746,-460.0,0.00024465,2]
[372330794,1752592244755,-460.0,0.00024465,2]
[372330796,1752592244766,-1011.29,0.00024465,2]
[372330799,1752592244776,-2200.0,0.00024479,2]
[372330800,1752592244786,-300.0,0.00024521,2]
[372330803,1752592244798,-460.0,0.00024535,2]
[372330805,1752592244807,-2065.09725434,0.00024587,2]
[372330806,1752592244817,-634.2230988,0.00024605,2]
[372330808,1752592244827,-460.0,0.00024606,2]
[372330810,1752592244837,-460.0,0.00024606,2]
[372330813,1752592244847,-767.6,0.00024606,2]
[372330814,1752592244857,-460.0,0.00024606,2]
[372330817,1752592244867,-300.0,0.00024657,2]
[372330818,1752592244876,-300.0,0.00024657,2]
[372330820,1752592244886,-320.0,0.00024657,2]
[372330822,1752592244896,-200.0,0.00024658,15]
[372330824,1752592244906,-380.0,0.00024658,2]
[372330826,1752592244916,-500.0,0.00024658,2]
[372330828,1752592244925,-1974.90856,0.00024664,2]
[372330830,1752592244935,-500.0,0.00024685,2]
[372330832,1752592244944,-500.0,0.00024713,2]
[372330834,1752592244954,-1368.0,0.00024727,2]
[372330836,1752592244963,-461.32,0.00024739,2]
[372330838,1752592244973,-460.0,0.00024739,2]
[372330840,1752592244983,-460.0,0.00024739,2]
[372330842,1752592244994,-292.41124108,0.00024739,2]
[372330844,1752592245003,-460.0,0.00024739,2]
[372330846,1752592245013,-1011.29,0.00024739,2]
[372330848,1752592245023,-500.0,0.0002474,2]
[372330850,1752592245032,-500.0,0.00024768,2]
[372330852,1752592245043,-615.0,0.00024795,2]
[372330854,1752592245054,-1117.08,0.000248,7]
[372330856,1752592245064,-19720.7774167,0.000248,2]
[372330858,1752592245073,-460.0,0.00024831,2]
[372330860,1752592245084,-471.851614,0.00024832,8]
[372330862,1752592245093,-150.0,0.00024873,2]
[372330864,1752592245103,-160.0487716,0.00024873,2]
[372330866,1752592245113,-500.66823025,0.00024873,2]
[372330868,1752592245122,-460.0,0.0002488,2]
[372330870,1752592245131,-460.0,0.0002488,2]
[372330872,1752592245140,-767.6,0.0002488,2]
[372330874,1752592245150,-460.0,0.0002488,2]
[372330876,1752592245159,-276.82438841,0.00024899,2]
[372330878,1752592245169,-500.0,0.00024899,2]
[372330880,1752592245179,-500.0,0.00024899,2]
[372330882,1752592245189,-500.0,0.00024899,2]
[372330884,1752592245198,-500.0,0.00024899,2]
[372330886,1752592245208,-500.0,0.00024899,2]
[372330888,1752592245217,-500.0,0.00024899,2]
[372330890,1752592245227,-500.0,0.00024899,2]
[372330892,1752592245236,-456.02921647,0.00024899,2]
[372330894,1752592245245,-500.0,0.00024899,2]
[372330896,1752592245255,-500.0,0.00024899,2]
[372330898,1752592245264,-500.0,0.00024899,2]
[372330900,1752592245274,-500.0,0.00024899,2]
[372330902,1752592245283,-500.0,0.00024899,2]
[372330904,1752592245294,-500.0,0.00024899,2]
[372330906,1752592245303,-500.0,0.00024899,2]
[372330908,1752592245313,-200.0,0.00024899,2]
[372330910,1752592245322,-500.0,0.00024899,2]
[372330912,1752592245332,-500.0,0.00024899,2]
[372330914,1752592245342,-160.99873438,0.00024899,2]
[372330916,1752592245352,-347.59,0.000249,7]
[372330917,1752592245362,-522265.24810982,0.000249,2]
[372330926,1752592245445,-5081.75793242,0.000249,2]
[372330928,1752592245458,-7396.1390546,0.000249,2]
[372330930,1752592245471,-773.6700976,0.000249,2]
[372330932,1752592245483,-677.10053554,0.000249,2]
[372330954,1752592245666,-81.81684987,0.000249,2]
[372330956,1752592245679,-608.92218227,0.000249,2]
[372330958,1752592245690,-325.38067191,0.000249,2]
[372330960,1752592245702,-116090.0,0.000249,2]
[372330963,1752592245714,-50888.84711204,0.000249,2]
[372330965,1752592245725,-17444.99999999,0.000249,2]
[372330967,1752592245736,-1255.25124958,0.000249,2]
[372330969,1752592245748,-842.44682592,0.000249,2]
[372330971,1752592245760,-1147.5066,0.000249,2]
[372330975,1752592245784,-324.61777032,0.000249,2]
[372330977,1752592245795,-4728.28909977,0.000249,2]
[372330979,1752592245806,-5786.22359735,0.000249,2]
[372330981,1752592245815,-16.77640265,0.00024966,2]
[372331007,1752592246068,-471.14584976,0.00021864,2]
[372331009,1752592246078,-500.0,0.00021864,2]
[372331011,1752592246088,-500.0,0.00021864,2]
[372331013,1752592246098,-500.0,0.00021864,2]
[372331015,1752592246108,-500.0,0.00021864,2]
[372331017,1752592246117,-500.0,0.00021864,2]
[372331019,1752592246126,-238.473546,0.00021864,2]
[372331021,1752592246135,-650.55620881,0.00021864,2]
[372331023,1752592246145,-500.0,0.00021864,2]
[372331025,1752592246154,-500.0,0.00021864,2]
[372331027,1752592246164,-500.0,0.00021864,2]
[372331029,1752592246174,-280.74488854,0.00021864,2]
[372331031,1752592246183,-500.0,0.00021864,2]
[372331033,1752592246194,-500.0,0.00021864,2]
[372331035,1752592246203,-500.0,0.00021864,2]
[372331037,1752592246212,-500.0,0.00021864,2]
[372331039,1752592246222,-500.0,0.00021864,2]
[372331041,1752592246232,-500.0,0.00021864,2]
[372331043,1752592246242,-500.0,0.00021864,2]
[372331045,1752592246252,-312.67774991,0.00021864,2]
[372331046,1752592246262,-500.0,0.00021864,2]
[372331048,1752592246273,-500.0,0.00021864,2]
[372331051,1752592246283,-500.0,0.00021864,2]
[372331053,1752592246294,-500.0,0.00021864,2]
[372331054,1752592246304,-500.0,0.00021864,2]
[372331056,1752592246314,-500.0,0.00021864,2]
[372331058,1752592246324,-500.0,0.00021864,2]
[372331060,1752592246334,-611.27422072,0.00021864,2]
[372331063,1752592246344,-248.59907541,0.00021864,2]
[372331064,1752592246354,-500.0,0.00021864,2]
[372331066,1752592246363,-500.0,0.00021864,2]
[372331068,1752592246372,-500.0,0.00021864,2]
[372331070,1752592246383,-500.0,0.00021864,2]
[372331072,1752592246397,-500.0,0.00021864,2]
[372331075,1752592246407,-500.0,0.00021864,2]
[372331077,1752592246417,-500.0,0.00021864,2]
[372331079,1752592246428,-500.0,0.00021864,2]
[372331081,1752592246439,-500.0,0.00021864,2]
[372331083,1752592246449,-500.0,0.00021864,2]
[372331085,1752592246458,-500.0,0.00021864,2]
[372331087,1752592246469,-500.0,0.00021864,2]
[372331088,1752592246480,-500.0,0.00021864,2]
[372331091,1752592246491,-500.0,0.00021864,2]
[372331093,1752592246502,-500.0,0.00021864,2]
[372331095,1752592246512,-500.0,0.00021864,2]
[372331097,1752592246522,-500.0,0.00021864,2]
[372331099,1752592246531,-500.0,0.00021864,2]
[372331101,1752592246541,-500.0,0.00021864,2]
[372331102,1752592246551,-532.01646837,0.00021867,2]
[372331104,1752592246561,-453.14914192,0.00022314,2]
[372331107,1752592246572,-1043.41309905,0.00024966,2]
[372331108,1752592246581,-461.32,0.00025013,2]
[372331110,1752592246591,-200.14,0.00025013,2]
[372331113,1752592246605,-460.0,0.00025013,2]
[372331115,1752592246616,-460.0,0.00025013,2]
[372331116,1752592246626,-1011.29,0.00025013,2]
[372331118,1752592246636,-168.41747824,0.00025068,2]
[372331120,1752592246646,-2191.19749074,0.00025145,2]
[372331122,1752592246657,-194.96587836,0.00025154,2]
[372331125,1752592246670,-460.0,0.00025154,2]
[372331126,1752592246679,-767.6,0.00025154,2]
[372331128,1752592246689,-397.04,0.00025154,2]
[372331130,1752592246699,-5918.60019771,0.00025184,7]
[372331132,1752592246708,-460.0,0.00025184,2]
[372331134,1752592246718,-460.0,0.00025184,2]
[372331135,1752592246728,-462.44967919,0.00025184,2]
[372331136,1752592246738,-462.66188419,0.00025184,2]
[372331137,1752592246747,-460.0,0.00025184,2]
[372331138,1752592246758,-466.79425408,0.00025184,2]
[372331139,1752592246767,-462.86731609,0.00025184,2]
[372331140,1752592246777,-460.0,0.00025184,2]
[372331141,1752592246787,-460.0,0.00025184,2]
[372331142,1752592246798,-200.24926051,0.00025184,2]
[372331143,1752592246808,-462.36846764,0.00025184,2]
[372331144,1752592246818,-460.0,0.00025184,2]
[372331145,1752592246827,-460.0,0.00025184,2]
[372331147,1752592246837,-460.0,0.00025184,2]
[372331149,1752592246847,-460.0,0.00025184,2]
[372331150,1752592246856,-460.0,0.00025184,2]
[372331152,1752592246866,-460.0,0.00025184,2]
[372331155,1752592246876,-460.0,0.00025184,2]
[372331157,1752592246886,-460.0,0.00025184,2]
[372331158,1752592246896,-460.0,0.00025184,2]
[372331160,1752592246905,-460.0,0.00025184,2]
[372331162,1752592246915,-460.0,0.00025184,2]
[372331164,1752592246924,-822.52,0.000252,31]
[372331166,1752592246934,-822.52,0.000252,31]
[372331168,1752592246944,-822.52,0.000252,31]
[372331170,1752592246953,-822.52,0.000252,31]
[372331172,1752592246963,-822.52,0.000252,31]
[372331174,1752592246972,-822.52,0.000252,31]
[372331176,1752592246981,-822.52,0.000252,31]
[372331178,1752592246991,-822.52,0.000252,31]
[372331180,1752592247002,-822.52,0.000252,31]
[372331182,1752592247011,-822.52,0.000252,31]
[372331184,1752592247020,-822.52,0.000252,31]
[372331186,1752592247029,-822.52,0.000252,31]
[372331188,1752592247039,-822.52,0.000252,31]
[372331190,1752592247048,-822.52,0.000252,31]
[372331192,1752592247058,-822.52,0.000252,31]
[372331194,1752592247067,-822.52,0.000252,31]
[372331196,1752592247076,-4382.39498148,0.0002521,2]
[372331198,1752592247086,-11531.45111882,0.00025216,3]
[372331200,1752592247095,-92897.56244486,0.0002522,2]
[372331202,1752592247105,-838.84061749,0.0002522,3]
[372331204,1752592247114,-488.58102972,0.0002522,3]
[372331206,1752592247124,-165.8342874,0.0002522,3]
[372331208,1752592247134,-160.0,0.0002522,3]
[372331209,1752592247143,-525.51022752,0.0002522,3]
[372331211,1752592247152,-2191.19749074,0.0002523,2]
[372331213,1752592247162,-2065.09725434,0.0002524,2]
[372331215,1752592247171,-634.2230988,0.0002524,2]
[372331217,1752592247180,-223.0315306,0.00025257,2]
[372331219,1752592247190,-168.0,0.00025263,2]
[372331221,1752592247199,-16126.39821861,0.00025284,2]
[372331223,1752592247209,-461.32,0.00025287,2]
[372331225,1752592247219,-237.88,0.00025287,2]
[372331227,1752592247228,-460.0,0.00025287,2]
[372331229,1752592247237,-1011.29,0.00025287,2]
[372331231,1752592247246,-150.0,0.000253,2]
[372331232,1752592247255,-1976.682001,0.000253,5]
[372331235,1752592247265,-2000.0,0.000253,2]
[372331236,1752592247274,-2000.0,0.000253,2]
[372331238,1752592247284,-350.0,0.000253,2]
[372331240,1752592247294,-203.036754,0.000253,2]
[372331242,1752592247303,-216.84441063,0.000253,3]
[372331244,1752592247313,-151.54394486,0.00025323,2]
[372331246,1752592247322,-200.0,0.0002533,13]
[372331248,1752592247331,-587.0,0.00025333,2]
[372331250,1752592247340,-176.49278027,0.00025339,2]
[372331252,1752592247349,-151.0,0.0002534,7]
[372331254,1752592247359,-151.0,0.0002534,7]
[372331256,1752592247370,-191.524113,0.0002534,7]
[372331258,1752592247379,-151.0,0.0002534,7]
[372331260,1752592247389,-151.0,0.0002534,7]
[372331262,1752592247402,-151.0,0.0002534,7]
[372331264,1752592247411,-151.0,0.0002534,7]
[372331266,1752592247421,-151.0,0.0002534,7]
[372331268,1752592247431,-151.0,0.0002534,7]
[372331270,1752592247440,-151.0,0.0002534,7]
[372331272,1752592247449,-151.0,0.0002534,7]
[372331274,1752592247457,-151.0,0.0002534,7]
[372331276,1752592247466,-151.0,0.0002534,7]
[372331278,1752592247476,-151.0,0.0002534,7]
[372331280,1752592247486,-164.983082,0.0002534,7]
[372331282,1752592247495,-321.681942,0.0002534,7]
[372331284,1752592247504,-321.681942,0.0002534,7]
[372331286,1752592247514,-321.681942,0.0002534,7]
[372331288,1752592247523,-321.681942,0.0002534,7]
[372331290,1752592247532,-321.681942,0.0002534,7]
[372331292,1752592247541,-321.681942,0.0002534,7]
[372331294,1752592247551,-321.681942,0.0002534,7]
[372331296,1752592247560,-321.681942,0.0002534,7]
[372331298,1752592247570,-321.681942,0.0002534,7]
[372331299,1752592247579,-321.681942,0.0002534,7]
[372331301,1752592247589,-321.681942,0.0002534,7]
[372331303,1752592247599,-321.681942,0.0002534,7]
[372331305,1752592247608,-321.681942,0.0002534,7]
[372331307,1752592247618,-321.681942,0.0002534,7]
[372331309,1752592247627,-321.681942,0.0002534,7]
[372331310,1752592247636,-321.681942,0.0002534,7]
[372331312,1752592247646,-321.681942,0.0002534,7]
[372331314,1752592247656,-321.681942,0.0002534,7]
[372331316,1752592247665,-200.84977966,0.00025347,2]
[372331318,1752592247675,-151.0,0.00025348,7]
[372331320,1752592247685,-151.0,0.00025348,7]
[372331322,1752592247694,-164.21927,0.00025348,7]
[372331324,1752592247704,-151.0,0.00025348,7]
[372331326,1752592247713,-151.0,0.00025348,7]
[372331328,1752592247723,-151.0,0.00025348,7]
[372331330,1752592247733,-151.0,0.00025348,7]
[372331332,1752592247742,-151.0,0.00025348,7]
[372331334,1752592247752,-254.882596,0.00025348,7]
[372331336,1752592247761,-151.0,0.00025348,7]
[372331338,1752592247771,-151.0,0.00025348,7]
[372331340,1752592247781,-151.0,0.00025348,7]
[372331342,1752592247790,-151.0,0.00025348,7]
[372331344,1752592247800,-151.0,0.00025348,7]
[372331346,1752592247810,-151.0,0.00025348,7]
[372331348,1752592247823,-151.0,0.00025348,7]
[372331350,1752592247832,-163.17977,0.00025351,20]
[372331352,1752592247841,-152.503226,0.00025351,20]
[372331354,1752592247850,-2191.19749074,0.00025363,2]
[372331356,1752592247859,-151.0,0.00025373,7]
[372331358,1752592247869,-151.0,0.00025373,7]
[372331359,1752592247878,-151.0,0.00025373,7]
[372331361,1752592247887,-151.0,0.00025373,7]
[372331363,1752592247897,-151.0,0.00025373,7]
[372331366,1752592247907,-151.0,0.00025373,7]
[372331367,1752592247917,-151.0,0.00025373,7]
[372331369,1752592247927,-151.0,0.00025373,7]
[372331372,1752592247937,-151.0,0.00025373,7]
[372331373,1752592247946,-151.0,0.00025373,7]
[372331375,1752592247956,-197.474224,0.00025373,7]
[372331377,1752592247966,-376.964663,0.00025373,7]
[372331379,1752592247975,-376.964663,0.00025373,7]
[372331381,1752592247986,-376.964663,0.00025373,7]
[372331383,1752592247996,-376.964663,0.00025373,7]
[372331385,1752592248005,-376.964663,0.00025373,7]
[372331387,1752592248014,-376.964663,0.00025373,7]
[372331389,1752592248023,-376.964663,0.00025373,7]
[372331391,1752592248033,-376.964663,0.00025373,7]
[372331393,1752592248042,-376.964663,0.00025373,7]
[372331395,1752592248052,-376.964663,0.00025373,7]
[372331397,1752592248061,-376.964663,0.00025373,7]
[372331399,1752592248071,-376.964663,0.00025373,7]
[372331401,1752592248081,-376.964663,0.00025373,7]
[372331403,1752592248091,-376.964663,0.00025373,7]
[372331405,1752592248100,-376.964663,0.00025373,7]
[372331407,1752592248109,-376.964663,0.00025373,7]
[372331408,1752592248119,-151.0,0.00025373,7]
[372331410,1752592248128,-151.0,0.00025373,7]
[372331412,1752592248137,-151.0,0.00025373,7]
[372331414,1752592248147,-151.0,0.00025373,7]
[372331416,1752592248156,-151.0,0.00025373,7]
[372331418,1752592248166,-151.0,0.00025373,7]
[372331420,1752592248175,-251.40456,0.00025373,7]
[372331422,1752592248185,-151.0,0.00025373,7]
[372331424,1752592248194,-151.0,0.00025373,7]
[372331426,1752592248204,-151.0,0.00025373,7]
[372331428,1752592248214,-151.0,0.00025373,7]
[372331430,1752592248224,-151.0,0.00025373,7]
[372331432,1752592248233,-151.0,0.00025373,7]
[372331434,1752592248243,-151.0,0.00025373,7]
[372331436,1752592248252,-203.421422,0.00025373,7]
[372331438,1752592248262,-382.05584883,0.00025373,4]
[372331440,1752592248272,-560.0,0.00025379,2]
[372331442,1752592248282,-585.52780858,0.00025384,2]
[372331444,1752592248291,-3914.52289881,0.00025384,20]
[372331447,1752592248316,-500.0,0.00021864,2]
[372331449,1752592248325,-231500.0,0.00025384,20]
[372331451,1752592248336,-1009.34486268,0.00025384,20]
[372331463,1752592248450,-1452309.28967088,0.00025384,20]
[372331465,1752592248460,-3039.85161093,0.00025384,2]
[372331467,1752592248469,-884594.9105663,0.00025384,20]
[372331469,1752592248481,-11615.0,0.00025384,20]
[372331471,1752592248494,-2188.46784187,0.00025384,20]
[372331488,1752592248667,-500.0,0.00021864,2]
[372331490,1752592248677,-500.0,0.00021864,2]
[372331492,1752592248686,-500.0,0.00021864,2]
[372331494,1752592248696,-500.0,0.00021864,2]
[372331496,1752592248706,-500.0,0.00021864,2]
[372331498,1752592248716,-500.0,0.00021864,2]
[372331500,1752592248726,-500.0,0.00021864,2]
[372331502,1752592248736,-500.0,0.00021864,2]
[372331504,1752592248745,-500.0,0.00021864,2]
[372331506,1752592248755,-622.20286771,0.00021864,2]
[372331508,1752592248765,-500.0,0.00021864,2]
[372331510,1752592248775,-500.0,0.00021864,2]
[372331512,1752592248786,-500.0,0.00021864,2]
[372331514,1752592248800,-500.0,0.00021864,2]
[372331516,1752592248811,-500.0,0.00021864,2]
[372331518,1752592248821,-500.0,0.00021864,2]
[372331520,1752592248831,-500.0,0.00021864,2]
[372331522,1752592248842,-500.0,0.00021864,2]
[372331524,1752592248852,-500.0,0.00021864,2]
[372331526,1752592248862,-500.0,0.00021864,2]
[372331528,1752592248872,-500.0,0.00021864,2]
[372331530,1752592248881,-500.0,0.00021864,2]
[372331532,1752592248891,-500.0,0.00021864,2]
[372331533,1752592248900,-500.0,0.00021864,2]
[372331535,1752592248910,-500.0,0.00021864,2]
[372331537,1752592248920,-500.0,0.00021864,2]
[372331539,1752592248929,-500.0,0.00021864,2]
[372331541,1752592248939,-460.0,0.00021866,2]
[372331543,1752592248949,-460.0,0.00021895,2]
[372331545,1752592248958,-460.0,0.00021895,2]
[372331547,1752592248968,-597.07,0.0002214,2]
[372331549,1752592248978,-1727424.03611886,0.00025384,20]
[372331551,1752592248987,-547401.45420673,0.00025384,20]
[372331553,1752592248996,-208.80499174,0.00025384,7]
[372331555,1752592249006,-23999.0,0.00025384,20]
[372331557,1752592249015,-24970.0,0.00025384,20]
[372331559,1752592249024,-1184.45691064,0.00025384,2]
[372331561,1752592249034,-141136.4990835,0.00025384,20]
[372331563,1752592249045,-8533.50998883,0.00025384,20]
[372331579,1752592249191,-333220.68839796,0.00025384,20]
[372332996,1752592267753,2635.55,0.00023,30]
[372333912,1752593122374,160.630036,0.00013699,2]
[372333913,1752593132158,-160.0,0.00020082,2]
[372333914,1752593132181,-1919.0064634,0.00020102,2]
[372333915,1752593132202,-165.080579,0.00020721,2]
[372333916,1752593132225,-468.75,0.00020875,2]
[372333917,1752593132246,-525.51022752,0.00020875,2]
[372333918,1752593132268,-255.84239417,0.00020883,2]
[372333919,1752593132290,-201.07663184,0.0002089,2]
[372333931,1752593242103,-2758.1783807,0.00020096,2]
[372333932,1752593242127,-525.51022752,0.0002089,2]
[372333933,1752593242153,-1200.0,0.00020891,2]
[372333934,1752593242177,-300.0,0.00020891,2]
[372333935,1752593242200,-300.0,0.00020892,2]
[372333936,1752593242223,-274.0,0.00020892,2]
[372333937,1752593242246,-300.0,0.00020892,2]
[372333938,1752593242268,-1200.0,0.00020892,2]
[372333939,1752593242290,-342.54341154,0.00020893,2]
[372333940,1752593242313,-460.0,0.00020893,2]
[372333941,1752593242335,-460.0,0.00020893,2]
[372333942,1752593242358,-460.0,0.00020893,2]
[372333943,1752593242379,-460.0,0.00020893,2]
[372333944,1752593242403,-460.0,0.00020893,2]
[372333945,1752593242426,-460.0,0.00020893,2]
[372333946,1752593242447,-460.0,0.00020893,2]
[372333947,1752593242469,-460.0,0.00020893,2]
[372333948,1752593242491,-460.0,0.00020893,2]
[372333949,1752593242513,-460.0,0.00020893,2]
[372333950,1752593242535,-598.63,0.00020893,2]
[372333951,1752593242559,-460.0,0.00020893,2]
[372333952,1752593242583,-546.32,0.00020893,2]
[372333953,1752593242604,-460.0,0.00020893,2]
[372333954,1752593242626,-399.02284758,0.00020893,2]
[372333955,1752593248083,-60.97715242,0.00020893,2]
[372333956,1752593248107,-460.0,0.00020893,2]
[372333957,1752593248130,-460.0,0.00020893,2]
[372333958,1752593248154,-460.0,0.00020893,2]
[372333959,1752593248178,-8.17296645,0.00020893,2]
[372333960,1752593254091,-451.82703355,0.00020893,2]
[372333961,1752593254118,-460.0,0.00020893,2]
[372333962,1752593254142,-460.0,0.00020893,2]
[372333963,1752593254169,-1106.78,0.00020893,2]
[372333964,1752593254194,-460.0,0.00020893,2]
[372333965,1752593254220,-460.0,0.00020893,2]
[372333966,1752593254246,-460.0,0.00021163,2]
[372333967,1752593254271,-460.0,0.00021163,2]
[372333968,1752593254295,-460.0,0.00021163,2]
[372333969,1752593254319,-460.0,0.00021163,2]
[372333970,1752593254343,-368.414591,0.00021163,2]
[372333972,1752593346136,-150.0,0.000189,2]
[372333975,1752593357103,-460.0,0.00020893,2]
[372333976,1752593357128,-844.50538754,0.00020893,2]
[372333980,1752593374126,-354.98461246,0.00020893,2]
[372333981,1752593374152,-460.0,0.00020893,2]
[372333982,1752593374175,-525.51022752,0.00021161,2]
[372333983,1752593374196,-91.585409,0.00021163,2]
[372333984,1752593374220,-460.0,0.00021163,2]
[372333985,1752593374242,-298.61727895,0.00021163,2]
[372333986,1752593375688,2715.58338586,0.00025393,120]